[Event "Titled Tuesday Blitz August 22 Late 2023"]
[White "Rastbod, Ali"]
[Black "Geivondian, Arman"]
[WhiteFideId "12567477"]
[BlackFideId "24102032"]
[WhiteElo "2684"]
[BlackElo "2517"]
[Result "1-0"]
[Round "4"]
[TimeControl "180+1"]
[Date "2023.08.22"]
[WhiteClock "0:00:10"]
[BlackClock "0:00:29"]
[Board "77"]

1. Nf3 {[%clk 0:03:00]}  Nf6 {[%clk 0:03:00]} 2. g3 {[%clk 0:03:00]}  g6 {[%clk 0:03:00]} 3. Bg2 {[%clk 0:03:00]}  Bg7 {[%clk 0:03:00]} 4. O-O {[%clk 0:03:01]}  O-O {[%clk 0:03:01]} 5. d4 {[%clk 0:02:57]}  d5 {[%clk 0:03:01]} 6. c3 {[%clk 0:02:58]}  Nbd7 {[%clk 0:02:59]} 7. a4 {[%clk 0:02:57]}  c5 {[%clk 0:02:59]} 8. b4 {[%clk 0:02:53]}  cxb4 {[%clk 0:02:57]} 9. cxb4 {[%clk 0:02:53]}  a5 {[%clk 0:02:58]} 10. b5 {[%clk 0:02:52]}  Nb6 {[%clk 0:02:57]} 11. Ne5 {[%clk 0:02:45]}  Bf5 {[%clk 0:02:57]} 12. Ba3 {[%clk 0:02:23]}  Nfd7 {[%clk 0:02:51]} 13. f4 {[%clk 0:02:21]}  Nxe5 {[%clk 0:02:48]} 14. fxe5 {[%clk 0:02:14]}  Nc4 {[%clk 0:02:48]} 15. Bc1 {[%clk 0:02:10]}  Qb6 {[%clk 0:02:44]} 16. Kh1 {[%clk 0:02:02]}  e6 {[%clk 0:02:39]} 17. Nc3 {[%clk 0:01:25]}  Rac8 {[%clk 0:02:38]} 18. e4 {[%clk 0:01:14]}  dxe4 {[%clk 0:02:36]} 19. Nxe4 {[%clk 0:01:15]}  Rfd8 {[%clk 0:02:32]} 20. Nf6+ {[%clk 0:01:02]}  Bxf6 {[%clk 0:02:32]} 21. exf6 {[%clk 0:01:03]}  Qxd4 {[%clk 0:02:32]} 22. Bf4 {[%clk 0:00:59]}  Be4 {[%clk 0:02:22]} 23. Qxd4 {[%clk 0:00:53]}  Rxd4 {[%clk 0:02:21]} 24. Bxe4 {[%clk 0:00:51]}  Rxe4 {[%clk 0:02:22]} 25. Rfd1 {[%clk 0:00:48]}  e5 {[%clk 0:02:22]} 26. Bh6 {[%clk 0:00:47]}  Rd4 {[%clk 0:02:22]} 27. Re1 {[%clk 0:00:30]}  Re8 {[%clk 0:02:12]} 28. Rac1 {[%clk 0:00:26]}  e4 {[%clk 0:01:55]} 29. Rc3 {[%clk 0:00:20]}  Ne5 {[%clk 0:01:46]} 30. Rc7 {[%clk 0:00:17]}  Rd7 {[%clk 0:01:46]} 31. b6 {[%clk 0:00:13]}  Rd6 {[%clk 0:01:39]} 32. Rxe4 {[%clk 0:00:13]}  Rde6 {[%clk 0:01:34]} 33. Rxb7 {[%clk 0:00:11]}  Rd8 {[%clk 0:01:30]} 34. Re7 {[%clk 0:00:09]}  Ng4 {[%clk 0:00:30]} 35. R4xe6 {[%clk 0:00:09]}  fxe6 {[%clk 0:00:30]} 36. f7+ {[%clk 0:00:09]}  Kh8 {[%clk 0:00:29]} 37. Re8+ {[%clk 0:00:09]}  Rxe8 {[%clk 0:00:29]} 38. fxe8=Q# {[%clk 0:00:10]} 1-0


[Site "https://www.chess.com"]

[Event "Titled Tuesday Blitz August 22 Late 2023"]
[White "Alex_Sahakyan2006"]
[Black "WindWhistler11"]
[WhiteElo "2681"]
[BlackElo "2486"]
[Result "1-0"]
[Round "4"]
[TimeControl "180+1"]
[Date "2023.08.22"]
[WhiteClock "0:00:08"]
[BlackClock "0:00:01"]
[Board "79"]

1. e4 {[%clk 0:03:00]}  e6 {[%clk 0:02:59]} 2. d4 {[%clk 0:02:59]}  d5 {[%clk 0:03:00]} 3. Bd3 {[%clk 0:02:59]}  Nc6 {[%clk 0:02:57]} 4. c3 {[%clk 0:02:56]}  e5 {[%clk 0:02:56]} 5. exd5 {[%clk 0:02:46]}  Qxd5 {[%clk 0:02:55]} 6. Nf3 {[%clk 0:02:46]}  e4 {[%clk 0:02:39]} 7. Qe2 {[%clk 0:02:46]}  f5 {[%clk 0:02:39]} 8. Bc4 {[%clk 0:02:45]}  Qd6 {[%clk 0:02:35]} 9. Ng5 {[%clk 0:02:44]}  Nh6 {[%clk 0:02:31]} 10. Na3 {[%clk 0:02:43]}  a6 {[%clk 0:02:30]} 11. g3 {[%clk 0:02:29]}  Be7 {[%clk 0:02:22]} 12. Bf4 {[%clk 0:02:28]}  Qg6 {[%clk 0:02:22]} 13. h4 {[%clk 0:02:27]}  Bd6 {[%clk 0:02:06]} 14. Nc2 {[%clk 0:02:03]}  Bd7 {[%clk 0:02:02]} 15. Ne3 {[%clk 0:02:01]}  Bxf4 {[%clk 0:01:51]} 16. gxf4 {[%clk 0:02:02]}  Qd6 {[%clk 0:01:50]} 17. Qh5+ {[%clk 0:02:01]}  Qg6 {[%clk 0:01:44]} 18. Qe2 {[%clk 0:01:55]}  O-O-O {[%clk 0:01:39]} 19. O-O-O {[%clk 0:01:45]}  Qd6 {[%clk 0:01:36]} 20. Nh3 {[%clk 0:01:45]}  Na5 {[%clk 0:01:33]} 21. Bb3 {[%clk 0:01:44]}  Nxb3+ {[%clk 0:01:29]} 22. axb3 {[%clk 0:01:45]}  Bb5 {[%clk 0:01:22]} 23. Qh5 {[%clk 0:01:38]}  Be8 {[%clk 0:01:21]} 24. Qg5 {[%clk 0:01:35]}  Qd7 {[%clk 0:01:09]} 25. Rhg1 {[%clk 0:01:29]}  Rg8 {[%clk 0:01:08]} 26. Nc4 {[%clk 0:01:25]}  Nf7 {[%clk 0:01:06]} 27. Qg3 {[%clk 0:01:22]}  Qb5 {[%clk 0:01:04]} 28. Kc2 {[%clk 0:01:20]}  Nd6 {[%clk 0:00:57]} 29. Ne5 {[%clk 0:01:20]}  h6 {[%clk 0:00:49]} 30. c4 {[%clk 0:01:04]}  Qb4 {[%clk 0:00:42]} 31. Qc3 {[%clk 0:01:04]}  Qxc3+ {[%clk 0:00:39]} 32. bxc3 {[%clk 0:01:00]}  Bh5 {[%clk 0:00:40]} 33. Ra1 {[%clk 0:00:59]}  Nf7 {[%clk 0:00:39]} 34. b4 {[%clk 0:00:55]}  Nxe5 {[%clk 0:00:35]} 35. fxe5 {[%clk 0:00:56]}  Bg4 {[%clk 0:00:36]} 36. Nf4 {[%clk 0:00:55]}  g5 {[%clk 0:00:36]} 37. hxg5 {[%clk 0:00:55]}  hxg5 {[%clk 0:00:37]} 38. Ne6 {[%clk 0:00:55]}  Rde8 {[%clk 0:00:37]} 39. d5 {[%clk 0:00:55]}  Be2 {[%clk 0:00:37]} 40. Kb3 {[%clk 0:00:50]}  b5 {[%clk 0:00:22]} 41. cxb5 {[%clk 0:00:27]}  axb5 {[%clk 0:00:22]} 42. Ra7 {[%clk 0:00:26]}  Bc4+ {[%clk 0:00:20]} 43. Kc2 {[%clk 0:00:24]}  Bxd5 {[%clk 0:00:18]} 44. Nxc7 {[%clk 0:00:22]}  Kb8 {[%clk 0:00:10]} 45. Rga1 {[%clk 0:00:18]}  Bb7 {[%clk 0:00:10]} 46. Nxb5 {[%clk 0:00:19]}  Rxe5 {[%clk 0:00:09]} 47. Nd6 {[%clk 0:00:19]}  Rg7 {[%clk 0:00:09]} 48. c4 {[%clk 0:00:15]}  f4 {[%clk 0:00:08]} 49. c5 {[%clk 0:00:15]}  Rc7 {[%clk 0:00:06]} 50. Nb5 {[%clk 0:00:14]}  Rc6 {[%clk 0:00:06]} 51. Rh1 {[%clk 0:00:13]}  e3 {[%clk 0:00:05]} 52. Rh8+ {[%clk 0:00:13]}  Rc8 {[%clk 0:00:06]} 53. Rh7 {[%clk 0:00:13]}  Bc6 {[%clk 0:00:04]} 54. Nd6 {[%clk 0:00:13]}  e2 {[%clk 0:00:02]} 55. b5 {[%clk 0:00:12]}  e1=Q {[%clk 0:00:03]} 56. bxc6 {[%clk 0:00:12]}  Qe2+ {[%clk 0:00:02]} 57. Kb3 {[%clk 0:00:12]}  Re3+ {[%clk 0:00:02]} 58. fxe3 {[%clk 0:00:12]}  Qxe3+ {[%clk 0:00:03]} 59. Kc4 {[%clk 0:00:12]}  Qe2+ {[%clk 0:00:03]} 60. Kd5 {[%clk 0:00:12]}  Qd3+ {[%clk 0:00:03]} 61. Ke6 {[%clk 0:00:12]}  Qb3+ {[%clk 0:00:02]} 62. Kf5 {[%clk 0:00:11]}  Qd3+ {[%clk 0:00:02]} 63. Kg4 {[%clk 0:00:10]}  Qe2+ {[%clk 0:00:02]} 64. Kxg5 {[%clk 0:00:10]}  Rg8+ {[%clk 0:00:01]} 65. Kf6 {[%clk 0:00:09]}  Qa2 {[%clk 0:00:01]} 66. Rhb7# {[%clk 0:00:08]} 1-0


[Site "https://www.chess.com"]

[Event "Titled Tuesday Blitz August 22 Late 2023"]
[White "Eggleston, Thomas A"]
[Black "Annaberdiyev, Meylis"]
[WhiteFideId "412139"]
[BlackFideId "14000563"]
[WhiteElo "2460"]
[BlackElo "2672"]
[Result "0-1"]
[Round "4"]
[TimeControl "180+1"]
[Date "2023.08.22"]
[WhiteClock "0:00:03"]
[BlackClock "0:00:26"]
[Board "82"]

1. e4 {[%clk 0:03:00]}  c5 {[%clk 0:02:55]} 2. Nf3 {[%clk 0:03:00]}  Nc6 {[%clk 0:02:55]} 3. Bb5 {[%clk 0:03:00]}  d6 {[%clk 0:02:55]} 4. Bxc6+ {[%clk 0:02:58]}  bxc6 {[%clk 0:02:55]} 5. O-O {[%clk 0:02:54]}  Bg4 {[%clk 0:02:47]} 6. h3 {[%clk 0:02:45]}  Bh5 {[%clk 0:02:46]} 7. Re1 {[%clk 0:02:42]}  e5 {[%clk 0:02:45]} 8. c3 {[%clk 0:02:38]}  Nf6 {[%clk 0:02:24]} 9. d4 {[%clk 0:02:04]}  cxd4 {[%clk 0:02:23]} 10. cxd4 {[%clk 0:02:04]}  Qc7 {[%clk 0:02:24]} 11. dxe5 {[%clk 0:01:58]}  dxe5 {[%clk 0:02:24]} 12. Nc3 {[%clk 0:01:54]}  Be7 {[%clk 0:02:21]} 13. g4 {[%clk 0:01:39]}  Bg6 {[%clk 0:02:20]} 14. Qe2 {[%clk 0:01:30]}  O-O {[%clk 0:02:11]} 15. Nh4 {[%clk 0:01:24]}  Nd7 {[%clk 0:01:36]} 16. Nf5 {[%clk 0:01:19]}  Nc5 {[%clk 0:01:23]} 17. b3 {[%clk 0:01:07]}  Ne6 {[%clk 0:01:21]} 18. Be3 {[%clk 0:00:43]}  Bg5 {[%clk 0:01:10]} 19. Rad1 {[%clk 0:00:38]}  Rad8 {[%clk 0:01:07]} 20. Qc4 {[%clk 0:00:31]}  h6 {[%clk 0:00:59]} 21. h4 {[%clk 0:00:27]}  Bf4 {[%clk 0:00:50]} 22. h5 {[%clk 0:00:24]}  Bh7 {[%clk 0:00:49]} 23. Ne2 {[%clk 0:00:22]}  Bxe3 {[%clk 0:00:48]} 24. fxe3 {[%clk 0:00:21]}  Ng5 {[%clk 0:00:47]} 25. Kg2 {[%clk 0:00:18]}  Qa5 {[%clk 0:00:29]} 26. b4 {[%clk 0:00:12]}  Qa4 {[%clk 0:00:29]} 27. Neg3 {[%clk 0:00:11]}  Rxd1 {[%clk 0:00:27]} 28. Rxd1 {[%clk 0:00:09]}  Qxd1 {[%clk 0:00:28]} 29. Ne7+ {[%clk 0:00:08]}  Kh8 {[%clk 0:00:27]} 30. Nxc6 {[%clk 0:00:07]}  Qf3+ {[%clk 0:00:27]} 31. Kh2 {[%clk 0:00:07]}  Qf2+ {[%clk 0:00:26]} 32. Kh1 {[%clk 0:00:03]}  Qxg3 {[%clk 0:00:26]} 0-1


[Site "https://www.chess.com"]

[Event "Titled Tuesday Blitz August 22 Late 2023"]
[White "Buchenau, Frank"]
[Black "Korchmar, Vasiliy"]
[WhiteFideId "4604350"]
[BlackFideId "24131750"]
[WhiteElo "2457"]
[BlackElo "2669"]
[Result "1-0"]
[Round "4"]
[TimeControl "180+1"]
[Date "2023.08.22"]
[WhiteClock "0:01:10"]
[BlackClock "0:00:30"]
[Board "84"]

1. e4 {[%clk 0:02:56]}  c5 {[%clk 0:03:00]} 2. Nf3 {[%clk 0:02:55]}  d6 {[%clk 0:03:00]} 3. Bb5+ {[%clk 0:02:54]}  Nd7 {[%clk 0:03:00]} 4. O-O {[%clk 0:02:54]}  a6 {[%clk 0:03:01]} 5. Bd3 {[%clk 0:02:53]}  Ngf6 {[%clk 0:02:59]} 6. Re1 {[%clk 0:02:53]}  e6 {[%clk 0:03:00]} 7. c3 {[%clk 0:02:54]}  b5 {[%clk 0:03:00]} 8. a4 {[%clk 0:02:51]}  b4 {[%clk 0:02:58]} 9. Bc2 {[%clk 0:02:48]}  Bb7 {[%clk 0:02:57]} 10. d4 {[%clk 0:02:48]}  Be7 {[%clk 0:02:57]} 11. Nbd2 {[%clk 0:02:42]}  O-O {[%clk 0:02:56]} 12. e5 {[%clk 0:02:36]}  dxe5 {[%clk 0:02:53]} 13. dxe5 {[%clk 0:02:36]}  Nd5 {[%clk 0:02:53]} 14. Ne4 {[%clk 0:02:33]}  h6 {[%clk 0:02:52]} 15. c4 {[%clk 0:02:32]}  N5b6 {[%clk 0:02:48]} 16. Qd3 {[%clk 0:02:30]}  Bxe4 {[%clk 0:02:32]} 17. Qxe4 {[%clk 0:02:29]}  f5 {[%clk 0:02:32]} 18. exf6 {[%clk 0:02:27]}  Nxf6 {[%clk 0:02:30]} 19. Qxe6+ {[%clk 0:02:27]}  Kh8 {[%clk 0:02:18]} 20. Qxe7 {[%clk 0:02:17]}  Nxc4 {[%clk 0:02:19]} 21. Qxd8 {[%clk 0:02:07]}  Raxd8 {[%clk 0:02:19]} 22. b3 {[%clk 0:02:04]}  Na5 {[%clk 0:02:19]} 23. Ne5 {[%clk 0:01:58]}  Kg8 {[%clk 0:02:16]} 24. Be3 {[%clk 0:01:56]}  Rfe8 {[%clk 0:02:10]} 25. Bxc5 {[%clk 0:01:50]}  Rd2 {[%clk 0:01:45]} 26. Bg6 {[%clk 0:01:47]}  Rb8 {[%clk 0:01:39]} 27. Rad1 {[%clk 0:01:42]}  Rb2 {[%clk 0:01:21]} 28. Nd7 {[%clk 0:01:30]}  Nxd7 {[%clk 0:01:21]} 29. Rxd7 {[%clk 0:01:31]}  Nxb3 {[%clk 0:01:19]} 30. Bf7+ {[%clk 0:01:30]}  Kh8 {[%clk 0:01:19]} 31. Bxb3 {[%clk 0:01:29]}  Rxb3 {[%clk 0:01:18]} 32. Bd4 {[%clk 0:01:28]}  Rg8 {[%clk 0:01:18]} 33. g3 {[%clk 0:01:21]}  Ra3 {[%clk 0:01:07]} 34. Ree7 {[%clk 0:01:19]}  Rxa4 {[%clk 0:01:07]} 35. h4 {[%clk 0:01:11]}  b3 {[%clk 0:00:39]} 36. Bxg7+ {[%clk 0:01:09]}  Kh7 {[%clk 0:00:30]} 37. h5 {[%clk 0:01:10]} 1-0


[Site "https://www.chess.com"]

[Event "Titled Tuesday Blitz August 22 Late 2023"]
[White "Ehlvest, Jaan"]
[Black "Titichoca Daza, Daniel"]
[WhiteFideId "4500016"]
[BlackFideId "3309550"]
[WhiteElo "2655"]
[BlackElo "2434"]
[Result "1-0"]
[Round "4"]
[TimeControl "180+1"]
[Date "2023.08.22"]
[WhiteClock "0:00:03"]
[BlackClock "0:00:02"]
[Board "89"]

1. e4 {[%clk 0:02:55]}  e5 {[%clk 0:02:49]} 2. Nf3 {[%clk 0:02:54]}  Nc6 {[%clk 0:02:50]} 3. Bc4 {[%clk 0:02:53]}  Bc5 {[%clk 0:02:44]} 4. c3 {[%clk 0:02:51]}  Nf6 {[%clk 0:02:37]} 5. d3 {[%clk 0:02:50]}  d6 {[%clk 0:02:35]} 6. O-O {[%clk 0:02:50]}  a5 {[%clk 0:02:29]} 7. h3 {[%clk 0:02:45]}  O-O {[%clk 0:02:26]} 8. Re1 {[%clk 0:02:45]}  Be6 {[%clk 0:02:09]} 9. Bb5 {[%clk 0:02:41]}  Bb6 {[%clk 0:02:02]} 10. Bg5 {[%clk 0:02:38]}  Ne7 {[%clk 0:01:45]} 11. Nh4 {[%clk 0:02:18]}  Ng6 {[%clk 0:01:37]} 12. Nxg6 {[%clk 0:02:17]}  fxg6 {[%clk 0:01:36]} 13. d4 {[%clk 0:02:10]}  h6 {[%clk 0:01:23]} 14. Bh4 {[%clk 0:02:07]}  c6 {[%clk 0:01:16]} 15. Ba4 {[%clk 0:02:01]}  g5 {[%clk 0:01:15]} 16. Bg3 {[%clk 0:02:00]}  Nd7 {[%clk 0:01:14]} 17. Na3 {[%clk 0:01:20]}  Qf6 {[%clk 0:01:06]} 18. Nc2 {[%clk 0:01:10]}  Bc4 {[%clk 0:01:00]} 19. Ne3 {[%clk 0:01:02]}  Be6 {[%clk 0:01:00]} 20. Bb3 {[%clk 0:00:52]}  exd4 {[%clk 0:00:54]} 21. cxd4 {[%clk 0:00:49]}  Kh8 {[%clk 0:00:51]} 22. Bxe6 {[%clk 0:00:46]}  Qxe6 {[%clk 0:00:51]} 23. Qd3 {[%clk 0:00:34]}  Rae8 {[%clk 0:00:47]} 24. Nc4 {[%clk 0:00:30]}  Bc7 {[%clk 0:00:46]} 25. Re3 {[%clk 0:00:25]}  b5 {[%clk 0:00:39]} 26. Nd2 {[%clk 0:00:24]}  Bb6 {[%clk 0:00:38]} 27. Rc1 {[%clk 0:00:23]}  c5 {[%clk 0:00:34]} 28. d5 {[%clk 0:00:22]}  Qf6 {[%clk 0:00:30]} 29. Qxb5 {[%clk 0:00:22]}  Qe7 {[%clk 0:00:26]} 30. Nc4 {[%clk 0:00:20]}  Bc7 {[%clk 0:00:27]} 31. Rce1 {[%clk 0:00:19]}  Nf6 {[%clk 0:00:20]} 32. Qc6 {[%clk 0:00:17]}  Rd8 {[%clk 0:00:19]} 33. e5 {[%clk 0:00:17]}  dxe5 {[%clk 0:00:16]} 34. Bxe5 {[%clk 0:00:16]}  Bxe5 {[%clk 0:00:16]} 35. Nxe5 {[%clk 0:00:16]}  Kh7 {[%clk 0:00:14]} 36. Nc4 {[%clk 0:00:12]}  Qd7 {[%clk 0:00:14]} 37. Qxd7 {[%clk 0:00:12]}  Rxd7 {[%clk 0:00:15]} 38. d6 {[%clk 0:00:12]}  Rfd8 {[%clk 0:00:15]} 39. Re5 {[%clk 0:00:12]}  Kg6 {[%clk 0:00:13]} 40. Rxc5 {[%clk 0:00:12]}  Kh7 {[%clk 0:00:13]} 41. Rxa5 {[%clk 0:00:11]}  Nh5 {[%clk 0:00:11]} 42. b3 {[%clk 0:00:10]}  Nf4 {[%clk 0:00:12]} 43. Ra6 {[%clk 0:00:10]}  Nd3 {[%clk 0:00:11]} 44. Re3 {[%clk 0:00:09]}  Nb4 {[%clk 0:00:11]} 45. Ra4 {[%clk 0:00:07]}  Nd5 {[%clk 0:00:10]} 46. Rd3 {[%clk 0:00:08]}  Nf4 {[%clk 0:00:10]} 47. Rd2 {[%clk 0:00:08]}  Re8 {[%clk 0:00:10]} 48. g3 {[%clk 0:00:08]}  Re1+ {[%clk 0:00:10]} 49. Kh2 {[%clk 0:00:08]}  Ne6 {[%clk 0:00:10]} 50. Ra8 {[%clk 0:00:06]}  Nc5 {[%clk 0:00:09]} 51. Rc8 {[%clk 0:00:05]}  Rf7 {[%clk 0:00:09]} 52. Rc7 {[%clk 0:00:04]}  Rf5 {[%clk 0:00:04]} 53. Rxc5 {[%clk 0:00:03]}  Rxc5 {[%clk 0:00:03]} 54. d7 {[%clk 0:00:04]}  Rf5 {[%clk 0:00:02]} 55. d8=Q {[%clk 0:00:04]}  h5 {[%clk 0:00:03]} 56. Qd3 {[%clk 0:00:04]}  g6 {[%clk 0:00:04]} 57. g4 {[%clk 0:00:04]}  Rf4 {[%clk 0:00:03]} 58. Qd7+ {[%clk 0:00:04]}  Kh6 {[%clk 0:00:03]} 59. Qd8 {[%clk 0:00:04]}  Kh7 {[%clk 0:00:02]} 60. Rd7+ {[%clk 0:00:03]}  Kh6 {[%clk 0:00:02]} 61. Qh8# {[%clk 0:00:03]} 1-0


[Site "https://www.chess.com"]

[Event "Titled Tuesday Blitz August 22 Late 2023"]
[White "ExchangeAB"]
[Black "Garcia Blanco, Omar"]
[BlackFideId "2287153"]
[WhiteElo "2428"]
[BlackElo "2654"]
[Result "1-0"]
[Round "4"]
[TimeControl "180+1"]
[Date "2023.08.22"]
[WhiteClock "0:00:40"]
[BlackClock "0:00:02"]
[Board "90"]

1. d4 {[%clk 0:03:00]}  f5 {[%clk 0:02:59]} 2. Nf3 {[%clk 0:02:56]}  Nf6 {[%clk 0:02:57]} 3. Bg5 {[%clk 0:02:56]}  d5 {[%clk 0:02:55]} 4. Bxf6 {[%clk 0:02:56]}  exf6 {[%clk 0:02:54]} 5. e3 {[%clk 0:02:56]}  Be6 {[%clk 0:02:53]} 6. Bd3 {[%clk 0:02:56]}  Qd7 {[%clk 0:02:52]} 7. O-O {[%clk 0:02:56]}  Nc6 {[%clk 0:02:51]} 8. Nc3 {[%clk 0:02:56]}  Ne7 {[%clk 0:02:50]} 9. Ne2 {[%clk 0:02:55]}  g6 {[%clk 0:02:49]} 10. b3 {[%clk 0:02:53]}  c6 {[%clk 0:02:48]} 11. c4 {[%clk 0:02:53]}  Bf7 {[%clk 0:02:45]} 12. Rc1 {[%clk 0:02:52]}  h5 {[%clk 0:02:42]} 13. b4 {[%clk 0:02:47]}  dxc4 {[%clk 0:02:38]} 14. Bxc4 {[%clk 0:02:47]}  Bxc4 {[%clk 0:02:39]} 15. Rxc4 {[%clk 0:02:48]}  g5 {[%clk 0:02:35]} 16. Qc1 {[%clk 0:02:40]}  h4 {[%clk 0:02:34]} 17. b5 {[%clk 0:02:39]}  g4 {[%clk 0:02:32]} 18. bxc6 {[%clk 0:02:36]}  Nxc6 {[%clk 0:02:27]} 19. Nd2 {[%clk 0:02:32]}  Bd6 {[%clk 0:02:12]} 20. Nb3 {[%clk 0:02:14]}  O-O-O {[%clk 0:01:35]} 21. d5 {[%clk 0:02:11]}  Bxh2+ {[%clk 0:01:30]} 22. Kxh2 {[%clk 0:02:11]}  Qxd5 {[%clk 0:01:20]} 23. Nbd4 {[%clk 0:02:00]}  g3+ {[%clk 0:01:17]} 24. Kg1 {[%clk 0:01:53]}  h3 {[%clk 0:01:16]} 25. Nf4 {[%clk 0:01:49]}  gxf2+ {[%clk 0:01:02]} 26. Rxf2 {[%clk 0:01:47]}  Qd6 {[%clk 0:00:47]} 27. Nxc6 {[%clk 0:01:33]}  h2+ {[%clk 0:00:46]} 28. Kh1 {[%clk 0:01:31]}  Qd1+ {[%clk 0:00:25]} 29. Rf1 {[%clk 0:01:31]}  Qxc1 {[%clk 0:00:23]} 30. Rcxc1 {[%clk 0:01:30]}  bxc6 {[%clk 0:00:23]} 31. Rxc6+ {[%clk 0:01:29]}  Kb7 {[%clk 0:00:24]} 32. Rxf6 {[%clk 0:01:28]}  Rd2 {[%clk 0:00:24]} 33. Rxf5 {[%clk 0:01:24]}  Rxa2 {[%clk 0:00:22]} 34. Rh5 {[%clk 0:01:23]}  Re8 {[%clk 0:00:20]} 35. Rf3 {[%clk 0:01:18]}  Ra3 {[%clk 0:00:19]} 36. Rhh3 {[%clk 0:01:16]}  Rb3 {[%clk 0:00:17]} 37. Kxh2 {[%clk 0:01:16]}  a5 {[%clk 0:00:18]} 38. Rfg3 {[%clk 0:01:11]}  a4 {[%clk 0:00:18]} 39. Rg7+ {[%clk 0:01:05]}  Kc6 {[%clk 0:00:18]} 40. Rh6+ {[%clk 0:01:04]}  Kc5 {[%clk 0:00:19]} 41. Ra7 {[%clk 0:01:02]}  a3 {[%clk 0:00:15]} 42. Ne6+ {[%clk 0:00:50]}  Kd6 {[%clk 0:00:10]} 43. Nd4+ {[%clk 0:00:48]}  Kd5 {[%clk 0:00:08]} 44. Nxb3 {[%clk 0:00:48]}  Rxe3 {[%clk 0:00:08]} 45. Rxa3 {[%clk 0:00:48]}  Ke5 {[%clk 0:00:07]} 46. Rh4 {[%clk 0:00:47]}  Kf6 {[%clk 0:00:06]} 47. Rb4 {[%clk 0:00:47]}  Re6 {[%clk 0:00:05]} 48. Ra5 {[%clk 0:00:46]}  Kf7 {[%clk 0:00:05]} 49. Nd4 {[%clk 0:00:45]}  Rh6+ {[%clk 0:00:04]} 50. Kg1 {[%clk 0:00:45]}  Rd6 {[%clk 0:00:04]} 51. Nf5 {[%clk 0:00:44]}  Rd1+ {[%clk 0:00:03]} 52. Kh2 {[%clk 0:00:44]}  Rd8 {[%clk 0:00:03]} 53. Rb6 {[%clk 0:00:43]}  Rh8+ {[%clk 0:00:02]} 54. Kg1 {[%clk 0:00:44]}  Rd8 {[%clk 0:00:01]} 55. Ra7+ {[%clk 0:00:43]}  Kf8 {[%clk 0:00:02]} 56. Rbb7 {[%clk 0:00:43]}  Rc8 {[%clk 0:00:01]} 57. Rf7+ {[%clk 0:00:40]}  Kg8 {[%clk 0:00:02]} 58. Nh6+ {[%clk 0:00:40]}  Kh8 {[%clk 0:00:02]} 59. Rh7# {[%clk 0:00:40]} 1-0


[Site "https://www.chess.com"]

[Event "Titled Tuesday Blitz August 22 Late 2023"]
[White "Godzwon, Iwo"]
[Black "Cmorales2001"]
[WhiteFideId "21802483"]
[WhiteElo "2649"]
[BlackElo "2395"]
[Result "0-1"]
[Round "4"]
[TimeControl "180+1"]
[Date "2023.08.22"]
[WhiteClock "0:00:25"]
[BlackClock "0:00:11"]
[Board "92"]

1. c4 {[%clk 0:02:53]}  e6 {[%clk 0:02:58]} 2. Nc3 {[%clk 0:02:50]}  d5 {[%clk 0:02:55]} 3. e3 {[%clk 0:02:51]}  Nf6 {[%clk 0:02:52]} 4. Nf3 {[%clk 0:02:51]}  Be7 {[%clk 0:02:51]} 5. b3 {[%clk 0:02:52]}  O-O {[%clk 0:02:50]} 6. Bb2 {[%clk 0:02:52]}  b6 {[%clk 0:02:50]} 7. Qc2 {[%clk 0:02:52]}  Bb7 {[%clk 0:02:50]} 8. Be2 {[%clk 0:02:51]}  Nbd7 {[%clk 0:02:49]} 9. d4 {[%clk 0:02:48]}  c5 {[%clk 0:02:48]} 10. O-O {[%clk 0:02:48]}  Rc8 {[%clk 0:02:41]} 11. Rfd1 {[%clk 0:02:48]}  cxd4 {[%clk 0:02:39]} 12. Nxd4 {[%clk 0:02:45]}  Qc7 {[%clk 0:02:38]} 13. Rac1 {[%clk 0:02:44]}  Qb8 {[%clk 0:02:37]} 14. Qb1 {[%clk 0:02:43]}  dxc4 {[%clk 0:02:35]} 15. Bxc4 {[%clk 0:02:42]}  Ne5 {[%clk 0:02:35]} 16. Bf1 {[%clk 0:02:40]}  Neg4 {[%clk 0:02:24]} 17. g3 {[%clk 0:02:37]}  Rc5 {[%clk 0:02:05]} 18. Nce2 {[%clk 0:02:02]}  Rh5 {[%clk 0:01:12]} 19. h3 {[%clk 0:02:00]}  Nxf2 {[%clk 0:01:02]} 20. Kxf2 {[%clk 0:01:56]}  Ne4+ {[%clk 0:01:00]} 21. Ke1 {[%clk 0:01:52]}  Nxg3 {[%clk 0:00:48]} 22. Nf4 {[%clk 0:01:24]}  Re5 {[%clk 0:00:27]} 23. Rd3 {[%clk 0:01:18]}  Rxe3+ {[%clk 0:00:22]} 24. Rxe3 {[%clk 0:01:17]}  Qxf4 {[%clk 0:00:22]} 25. Qd3 {[%clk 0:00:38]}  Nxf1 {[%clk 0:00:13]} 26. Re2 {[%clk 0:00:33]}  Ng3 {[%clk 0:00:11]} 27. Rf2 {[%clk 0:00:31]}  Bb4+ {[%clk 0:00:12]} 28. Bc3 {[%clk 0:00:25]}  Qxc1+ {[%clk 0:00:11]} 0-1


[Site "https://www.chess.com"]

[Event "Titled Tuesday Blitz August 22 Late 2023"]
[White "Turayev, Shahruh"]
[Black "Andrews, Todd"]
[WhiteFideId "14003856"]
[BlackFideId "2012456"]
[WhiteElo "2637"]
[BlackElo "2374"]
[Result "1/2-1/2"]
[Round "4"]
[TimeControl "180+1"]
[Date "2023.08.22"]
[WhiteClock "0:00:30"]
[BlackClock "0:00:18"]
[Board "94"]

1. e4 {[%clk 0:03:00]}  c5 {[%clk 0:02:59]} 2. Nc3 {[%clk 0:03:00]}  d6 {[%clk 0:02:59]} 3. f4 {[%clk 0:03:01]}  g6 {[%clk 0:02:59]} 4. Nf3 {[%clk 0:03:02]}  Bg7 {[%clk 0:02:59]} 5. Bc4 {[%clk 0:03:02]}  Nc6 {[%clk 0:03:00]} 6. O-O {[%clk 0:03:02]}  Nd4 {[%clk 0:03:01]} 7. d3 {[%clk 0:03:01]}  e6 {[%clk 0:03:01]} 8. Kh1 {[%clk 0:02:57]}  Ne7 {[%clk 0:03:00]} 9. Nxd4 {[%clk 0:02:57]}  cxd4 {[%clk 0:03:00]} 10. Ne2 {[%clk 0:02:57]}  O-O {[%clk 0:02:53]} 11. Bb3 {[%clk 0:02:58]}  Kh8 {[%clk 0:02:50]} 12. Ng3 {[%clk 0:02:59]}  f5 {[%clk 0:02:50]} 13. exf5 {[%clk 0:02:57]}  Nxf5 {[%clk 0:02:44]} 14. Nxf5 {[%clk 0:02:51]}  gxf5 {[%clk 0:02:43]} 15. Qf3 {[%clk 0:02:35]}  Rb8 {[%clk 0:02:36]} 16. Bd2 {[%clk 0:02:31]}  Bd7 {[%clk 0:02:31]} 17. Rae1 {[%clk 0:02:31]}  Qf6 {[%clk 0:02:27]} 18. Re2 {[%clk 0:02:24]}  Bc6 {[%clk 0:02:24]} 19. Qh3 {[%clk 0:02:22]}  e5 {[%clk 0:02:06]} 20. c3 {[%clk 0:01:24]}  Qg6 {[%clk 0:01:16]} 21. cxd4 {[%clk 0:01:20]}  e4 {[%clk 0:01:12]} 22. d5 {[%clk 0:01:19]}  Bb5 {[%clk 0:01:11]} 23. Bc4 {[%clk 0:01:19]}  Bxc4 {[%clk 0:01:08]} 24. dxc4 {[%clk 0:01:19]}  Bxb2 {[%clk 0:01:06]} 25. Bb4 {[%clk 0:01:19]}  Bg7 {[%clk 0:01:04]} 26. Bc3 {[%clk 0:01:14]}  Rg8 {[%clk 0:01:02]} 27. Bxg7+ {[%clk 0:01:06]}  Rxg7 {[%clk 0:01:03]} 28. Re3 {[%clk 0:01:02]}  Rbg8 {[%clk 0:01:01]} 29. g3 {[%clk 0:00:59]}  Qf6 {[%clk 0:00:58]} 30. Rd1 {[%clk 0:00:58]}  Rc7 {[%clk 0:00:49]} 31. Rb3 {[%clk 0:00:43]}  b6 {[%clk 0:00:46]} 32. Rc1 {[%clk 0:00:37]}  Rxc4 {[%clk 0:00:43]} 33. Rxc4 {[%clk 0:00:32]}  Qa1+ {[%clk 0:00:43]} 34. Kg2 {[%clk 0:00:33]}  Qxa2+ {[%clk 0:00:43]} 35. Kg1 {[%clk 0:00:29]}  Qxb3 {[%clk 0:00:41]} 36. Rc7 {[%clk 0:00:29]}  Qd1+ {[%clk 0:00:33]} 37. Kg2 {[%clk 0:00:29]}  Qf3+ {[%clk 0:00:26]} 38. Kg1 {[%clk 0:00:30]}  Qe3+ {[%clk 0:00:23]} 39. Kg2 {[%clk 0:00:30]}  Qf3+ {[%clk 0:00:19]} 40. Kg1 {[%clk 0:00:30]}  Qe3+ {[%clk 0:00:17]} 41. Kg2 {[%clk 0:00:30]}  Qf3+ {[%clk 0:00:18]} 1/2-1/2


[Site "https://www.chess.com"]